bitfinex/quotes_BTCUSD_20250110
["timestamp","ask_amount","ask_price","bid_price","bid_amount"]
[1736494365077,0.00014597,94516.0,94515.0,0.14172009]
[1736494365315,0.00014597,94516.0,94515.0,0.14372009]
[1736494366873,0.00014597,94516.0,94515.0,0.14477801]
[1736494367519,0.00014597,94516.0,94515.0,0.13637801]
[1736494367735,0.00014597,94516.0,94515.0,0.14477801]
[1736494368166,0.00014597,94516.0,94515.0,0.14177801]
[1736494368387,0.00014597,94516.0,94515.0,0.14277801]
[1736494368631,0.00014597,94516.0,94515.0,0.14477801]
[1736494369926,0.00014597,94516.0,94515.0,0.14277801]
[1736494370143,0.00014597,94516.0,94515.0,0.14577801]
[1736494370574,0.00014597,94516.0,94515.0,0.14477801]
[1736494370792,0.00014597,94516.0,94515.0,0.14577801]
[1736494371225,0.00014597,94516.0,94515.0,0.14477801]
[1736494371771,0.00014597,94516.0,94515.0,0.14277801]
[1736494371972,0.00014597,94516.0,94515.0,0.14477801]
[1736494373689,0.00014597,94516.0,94515.0,0.14377801]
[1736494373906,0.00014597,94516.0,94515.0,0.14477801]
[1736494374724,0.00014597,94516.0,94515.0,0.14277801]
[1736494375145,0.00014597,94516.0,94515.0,0.14477801]
[1736494378322,0.00014597,94516.0,94515.0,0.14372009]
[1736494379533,0.00014597,94516.0,94515.0,0.42873874]
[1736494379783,0.00014597,94516.0,94515.0,0.42768086]
[1736494380723,0.00014597,94516.0,94515.0,0.14372009]
[1736494381163,0.00014597,94516.0,94515.0,0.03102033]
[1736494381317,0.00809469,94516.0,94515.0,0.01646033]
[1736494381518,0.00809469,94516.0,94515.0,0.30054475]
[1736494381854,0.00809469,94516.0,94515.0,0.29754475]
[1736494382035,0.00809469,94516.0,94515.0,0.01346033]
[1736494382259,0.00809469,94516.0,94515.0,0.01746033]
[1736494382462,0.00809469,94516.0,94515.0,0.01446033]
[1736494383057,0.00809469,94516.0,94515.0,0.00602033]
[1736494383446,0.00809469,94516.0,94514.0,0.19360696]
[1736494383673,0.00809469,94516.0,94511.0,0.29252442]
[1736494383674,0.00873506,94515.0,94511.0,0.28408442]
[1736494383916,0.00873506,94515.0,94512.0,0.211613]
[1736494384517,0.00873506,94515.0,94510.0,0.00844]
[1736494384753,0.0775,94513.0,94504.0,0.49571342]
[1736494385292,0.0775,94513.0,94490.0,0.0499]
[1736494385293,0.0775,94513.0,94512.0,0.001]
[1736494385510,0.0775,94513.0,94502.0,0.211635]
[1736494386192,0.0775,94513.0,94502.0,0.42327]
[1736494386410,0.0775,94513.0,94499.0,0.023]
[1736494386631,0.03099147,94512.0,94500.0,0.21164]
[1736494386836,0.03099147,94512.0,94498.0,0.211642]
[1736494387045,0.1319,94511.0,94498.0,0.211642]
[1736494387899,0.1319,94511.0,94498.0,0.423286]
[1736494388508,0.1319,94511.0,94502.0,0.211633]
[1736494388691,0.01835356,94510.0,94502.0,0.211633]
[1736494388953,0.01835356,94510.0,94496.0,0.211648]
[1736494389156,0.0753,94508.0,94495.0,0.00844]
[1736494389332,0.0753,94508.0,94496.0,0.211649]
[1736494389547,0.0753,94508.0,94491.0,0.21166]
[1736494389742,0.0753,94508.0,94501.0,0.211636]
[1736494390371,0.0753,94508.0,94497.0,0.211645]
[1736494390571,0.01684052,94507.0,94497.0,0.211645]
[1736494391524,0.0753,94508.0,94497.0,0.423291]
[1736494391718,0.0753,94508.0,94497.0,0.211645]
[1736494391932,0.001,94507.0,94496.0,0.211648]
[1736494392112,0.0471555,94506.0,94496.0,0.211648]
[1736494393235,0.081,94505.0,94496.0,0.211648]
[1736494395493,0.082,94505.0,94496.0,0.211648]
[1736494400321,0.09369184,94505.0,94496.0,0.211648]
[1736494400751,0.09369184,94505.0,94501.0,0.211637]
[1736494401151,0.11787607,94505.0,94501.0,0.211637]
[1736494401775,0.11687607,94505.0,94501.0,0.211637]
[1736494402003,0.09269184,94505.0,94501.0,0.211637]
[1736494402214,0.09369184,94505.0,94501.0,0.211637]
[1736494403389,0.09369184,94505.0,94501.0,0.423274]
[1736494403546,0.09369184,94505.0,94501.0,0.41427398]
[1736494404204,0.01269184,94505.0,94501.0,0.41427398]
[1736494404539,0.01269184,94505.0,94503.0,0.211633]
[1736494405357,0.01169184,94505.0,94503.0,0.211633]
[1736494405765,0.0826,94510.0,94501.0,0.023]
[1736494405991,0.001,94505.0,94498.0,0.211643]
[1736494406122,0.0826,94510.0,94508.0,0.211621]
[1736494406323,0.09406188,94510.0,94508.0,0.211621]
[1736494406728,0.10437256,94510.0,94502.0,0.211635]
[1736494407363,0.10537256,94510.0,94502.0,0.211635]
[1736494407623,0.10537256,94510.0,94506.0,0.211624]
[1736494407961,0.10437256,94510.0,94506.0,0.211624]
[1736494408141,0.10537256,94510.0,94506.0,0.211624]
[1736494408522,0.10837256,94510.0,94506.0,0.20262398]
[1736494409157,0.0785813,94510.0,94506.0,0.20262398]
[1736494409329,0.005,94510.0,94506.0,0.20262398]
[1736494409912,0.006,94510.0,94506.0,0.20262398]
[1736494410112,0.006,94510.0,94502.0,0.211635]
[1736494410291,0.005,94510.0,94502.0,0.211635]
[1736494411042,0.005,94510.0,94502.0,0.42327]
[1736494411244,0.005,94510.0,94502.0,0.211635]
[1736494411491,0.067859,94512.0,94500.0,0.211639]
[1736494411696,0.001,94510.0,94493.0,0.211654]
[1736494411902,0.067859,94503.0,94493.0,0.211654]
[1736494412110,0.211643,94499.0,94486.0,0.21167]
[1736494412310,0.067859,94503.0,94486.0,0.21167]
[1736494412311,0.114359,94503.0,94486.0,0.21167]
[1736494412510,0.211637,94501.0,94488.0,0.211667]
[1736494413179,0.0191159,94502.0,94488.0,0.211667]
[1736494413581,0.067859,94500.0,94488.0,0.211667]
[1736494413778,0.067859,94500.0,94486.0,0.211671]
[1736494413779,0.0786,94498.0,94486.0,0.211671]
[1736494413997,0.0786,94498.0,94481.0,0.423362]
[1736494413998,0.067859,94496.0,94481.0,0.423362]
[1736494414190,0.067859,94491.0,94482.0,0.21168]
[1736494414386,0.067859,94491.0,94477.0,0.00832]
[1736494414387,0.04450759,94495.0,94486.0,0.211669]
[1736494416052,0.003,94495.0,94486.0,0.211669]
[1736494416808,0.004,94495.0,94486.0,0.211669]
[1736494417966,0.211655,94493.0,94477.0,0.00832]
[1736494418167,0.10342315,94490.0,94478.0,0.211689]
[1736494418398,0.0787,94494.0,94483.0,0.211677]
[1736494418601,0.0787,94494.0,94488.0,0.211666]
[1736494418775,0.004,94495.0,94488.0,0.211666]
[1736494419156,0.001,94495.0,94488.0,0.211666]
[1736494419571,0.001,94490.0,94488.0,0.211666]
[1736494419777,0.001,94490.0,94488.0,0.423333]
[1736494419974,0.001,94490.0,94488.0,0.211666]
[1736494420880,0.0901926,94500.0,94488.0,0.211666]
[1736494421154,0.003,94495.0,94488.0,0.211666]
[1736494421997,0.0901926,94500.0,94488.0,0.211666]
[1736494422401,0.001,94490.0,94488.0,0.211666]
[1736494423266,0.0921926,94500.0,94488.0,0.211666]
[1736494423466,0.08893566,94499.0,94488.0,0.211666]
[1736494423645,0.08893566,94499.0,94488.0,0.20266598]
[1736494424478,0.003,94495.0,94488.0,0.20266598]
[1736494424686,0.003,94495.0,94488.0,0.41433298]
[1736494425112,0.003,94495.0,94488.0,0.20266598]
[1736494425322,0.0775,94494.0,94479.0,0.211687]
[1736494425536,0.10342315,94490.0,94479.0,0.211687]
[1736494426142,0.02024158,94493.0,94479.0,0.211687]
[1736494426712,0.23189658,94493.0,94479.0,0.211687]
[1736494427927,0.10342315,94490.0,94479.0,0.211687]
[1736494428645,0.10442315,94490.0,94479.0,0.211687]
[1736494428856,0.04148197,94489.0,94479.0,0.211687]
[1736494429488,0.001,94490.0,94479.0,0.211687]
[1736494430890,0.0775,94494.0,94479.0,0.211687]
[1736494431407,0.211655,94493.0,94479.0,0.211687]
[1736494431793,0.001,94490.0,94479.0,0.211687]
[1736494431991,0.211655,94493.0,94479.0,0.211687]
[1736494432485,0.30596164,94493.0,94479.0,0.211687]
[1736494432964,0.10342315,94490.0,94477.0,0.211691]
[1736494433164,0.211664,94489.0,94477.0,0.211691]
[1736494434610,0.30596164,94493.0,94477.0,0.211691]
[1736494434805,0.001,94489.0,94477.0,0.211691]
[1736494435139,0.03959019,94488.0,94477.0,0.211691]
[1736494435323,0.001,94489.0,94479.0,0.0825]
[1736494435476,0.3274,94496.0,94490.0,0.211661]
[1736494435890,0.003,94493.0,94490.0,0.211661]
[1736494436098,0.003,94493.0,94491.0,0.1496]
[1736494436271,0.003,94493.0,94492.0,0.39403619]
[1736494436471,0.003,94493.0,94492.0,0.49727776]
[1736494436882,0.003,94493.0,94492.0,0.57397776]
[1736494437079,8.53e-05,94519.0,94509.0,0.211619]
[1736494437446,8.53e-05,94519.0,94510.0,0.023]
[1736494438105,8.53e-05,94519.0,94513.0,0.211609]
[1736494438459,8.53e-05,94519.0,94510.0,0.01399998]
[1736494438683,8.53e-05,94519.0,94511.0,0.211615]
[1736494438847,0.00614597,94516.0,94511.0,0.42323]
[1736494439047,0.00014597,94516.0,94511.0,0.42323]
[1736494440117,0.00214597,94516.0,94511.0,0.42323]
[1736494440315,0.00214597,94516.0,94511.0,0.211615]
[1736494440525,0.00814597,94516.0,94511.0,0.211615]
[1736494440781,0.00214597,94516.0,94511.0,0.211615]
[1736494441085,0.00214597,94516.0,94511.0,0.42323]
[1736494441290,0.00814597,94516.0,94511.0,0.211615]
[1736494441954,0.0821,94514.0,94501.0,0.211637]
[1736494442156,0.03021079,94513.0,94501.0,0.211637]
[1736494442364,0.03021079,94513.0,94493.0,0.211655]
[1736494442365,0.24182379,94513.0,94498.0,0.211642]
[1736494442788,0.24182379,94513.0,94498.0,0.423285]
[1736494443278,0.24182379,94513.0,94498.0,0.211642]
[1736494443486,0.05439257,94512.0,94498.0,0.211642]
[1736494443700,0.05439257,94512.0,94498.0,0.423286]
[1736494443905,0.05439257,94512.0,94494.0,0.00812]
[1736494443906,0.211629,94505.0,94491.0,0.00812]
[1736494444077,0.211631,94504.0,94491.0,0.00812]
[1736494444330,0.04417542,94503.0,94491.0,0.211658]
[1736494444709,0.0812,94506.0,94491.0,0.423317]
[1736494445053,0.211629,94505.0,94491.0,0.211658]
[1736494447035,0.423259,94505.0,94487.0,0.21078698]
[1736494447446,0.211639,94501.0,94487.0,0.21078698]
[1736494447800,0.10342315,94500.0,94487.0,0.21078698]
[1736494448002,0.06108912,94499.0,94491.0,0.211658]
[1736494448202,0.211643,94499.0,94481.0,0.00812]
[1736494448402,0.211631,94504.0,94487.0,0.211667]
[1736494448982,0.007,94501.0,94487.0,0.211667]
[1736494449210,0.211633,94503.0,94487.0,0.211667]
[1736494449436,0.211633,94503.0,94487.0,0.423335]
[1736494449599,0.0341333,94502.0,94487.0,0.423335]
[1736494449796,0.211637,94501.0,94487.0,0.423335]
[1736494450213,0.214637,94501.0,94487.0,0.211667]
[1736494450435,0.006,94499.0,94487.0,0.211667]
[1736494450792,0.214637,94501.0,94487.0,0.211667]
[1736494451020,0.05871033,94500.0,94487.0,0.211667]
[1736494451602,0.16213348,94500.0,94487.0,0.211667]
[1736494451826,0.006,94499.0,94487.0,0.211667]
[1736494452026,0.16213348,94500.0,94487.0,0.211667]
[1736494452406,0.16813348,94500.0,94487.0,0.211667]
[1736494452605,0.07378585,94499.0,94487.0,0.211667]
[1736494452804,0.07378585,94499.0,94491.0,0.211658]
[1736494453045,0.006,94500.0,94491.0,0.211658]
[1736494453485,0.008,94500.0,94491.0,0.20265798]
[1736494453646,0.002,94500.0,94491.0,0.20265798]
[1736494453860,0.3274,94501.0,94491.0,0.20265798]
[1736494454067,0.006,94499.0,94498.0,0.211644]
[1736494454449,0.3274,94501.0,94498.0,0.423288]
[1736494454647,0.01121367,94512.0,94508.0,0.417242]
[1736494454846,0.00014597,94516.0,94508.0,0.417242]
[1736494455392,0.00014597,94516.0,94508.0,0.415242]
[1736494455589,0.00014597,94516.0,94513.0,0.211609]
[1736494455784,0.00014597,94516.0,94513.0,0.205609]
[1736494456162,0.00314597,94516.0,94513.0,0.205609]
[1736494456844,0.00014597,94516.0,94513.0,0.41722]
[1736494457222,0.00214597,94516.0,94514.0,0.023]
[1736494457832,0.00814597,94516.0,94514.0,0.023]
[1736494457975,0.00214597,94516.0,94514.0,0.023]
[1736494458386,0.00614597,94516.0,94510.0,0.01399998]
[1736494458607,0.00614597,94516.0,94511.0,0.211615]
[1736494458804,0.00414597,94516.0,94511.0,0.211615]
[1736494459031,0.00814597,94516.0,94511.0,0.211615]
[1736494459232,0.00014597,94516.0,94511.0,0.211615]
[1736494459462,0.00214597,94516.0,94511.0,0.211615]
[1736494459609,0.00214597,94516.0,94510.0,0.01399998]
[1736494460036,0.00014597,94516.0,94511.0,0.211615]
[1736494460210,0.00214597,94516.0,94511.0,0.211615]
[1736494460833,0.00514597,94516.0,94511.0,0.211615]
[1736494461403,0.00214597,94516.0,94511.0,0.211615]
[1736494461624,0.00514597,94516.0,94511.0,0.211615]
[1736494461962,0.00314597,94516.0,94511.0,0.211615]
[1736494462161,0.00514597,94516.0,94510.0,0.01399998]
[1736494462374,0.00514597,94516.0,94504.0,0.21163]
[1736494462375,0.02169959,94515.0,94504.0,0.21163]
[1736494462605,0.02169959,94515.0,94504.0,0.42326]
[1736494463476,0.02169959,94515.0,94504.0,0.41425998]
[1736494463678,0.00314597,94516.0,94505.0,0.023]
[1736494464004,0.002,94515.0,94503.0,0.023]
[1736494464411,0.002,94515.0,94511.0,0.42323]
[1736494464859,0.005,94515.0,94511.0,0.42323]
[1736494465037,0.005,94515.0,94511.0,0.211615]
[1736494465247,0.00014597,94516.0,94511.0,0.211615]
[1736494465534,0.003,94515.0,94511.0,0.211615]
[1736494465748,0.00214597,94516.0,94511.0,0.211615]
[1736494466192,0.003,94515.0,94511.0,0.211615]
[1736494466396,0.00214597,94516.0,94511.0,0.211615]
[1736494466983,0.00014597,94516.0,94511.0,0.42323]
[1736494467179,0.00014597,94516.0,94512.0,0.023]
[1736494467333,0.00214597,94516.0,94514.0,0.023]
[1736494467748,0.004,94515.0,94514.0,0.023]
[1736494468262,0.00214597,94516.0,94514.0,0.023]
[1736494468638,0.00214597,94516.0,94514.0,0.01399998]
[1736494468878,0.00214597,94516.0,94484.0,0.0466]
[1736494468879,0.18059976,94515.0,94484.0,0.0466]
[1736494469092,0.18059976,94515.0,94488.0,0.28442506]
[1736494469093,0.43082315,94510.0,94488.0,0.28442506]
[1736494469310,0.10342315,94500.0,94488.0,0.28442506]
[1736494469557,0.0763,94503.0,94488.0,0.49609006]
[1736494469761,0.0763,94503.0,94488.0,0.211665]
[1736494471738,0.211635,94502.0,94488.0,0.211665]
[1736494471955,0.0499568,94501.0,94488.0,0.212665]
[1736494472470,0.0499568,94501.0,94488.0,0.211665]
[1736494472640,0.0499568,94501.0,94488.0,0.212665]
[1736494472845,0.0499568,94501.0,94488.0,0.211665]
[1736494473467,0.21164,94500.0,94488.0,0.20266498]
[1736494473783,0.26659138,94500.0,94488.0,0.20266498]
[1736494474574,0.05495138,94500.0,94488.0,0.20266498]
[1736494474749,0.05895138,94500.0,94488.0,0.20266498]
[1736494475440,0.05882404,94500.0,94488.0,0.20266498]
[1736494475649,0.03576967,94499.0,94488.0,0.20266498]
[1736494477677,0.03976967,94499.0,94488.0,0.20266498]
[1736494477860,0.04176967,94499.0,94488.0,0.20266498]
[1736494478498,0.04176967,94499.0,94488.0,0.19366496]
[1736494478894,0.211644,94498.0,94485.0,0.023]
[1736494479060,0.06995969,94497.0,94487.0,0.023]
[1736494479478,0.06995969,94497.0,94488.0,0.211667]
[1736494479935,0.006,94499.0,94488.0,0.211667]
[1736494480260,0.002,94499.0,94488.0,0.211667]
[1736494480531,0.10342315,94500.0,94488.0,0.211667]
[1736494480717,0.003,94497.0,94488.0,0.211667]
[1736494480911,0.001,94498.0,94488.0,0.211667]
[1736494481460,0.004,94499.0,94488.0,0.211667]
[1736494481659,0.03028727,94499.0,94488.0,0.211667]
[1736494481988,0.003,94497.0,94488.0,0.211667]
[1736494483458,0.003,94497.0,94488.0,0.20266698]
[1736494483809,0.001,94498.0,94488.0,0.20266698]
[1736494484008,0.211644,94498.0,94485.0,0.023]
[1736494484221,0.05598673,94497.0,94487.0,0.023]
[1736494484423,0.004,94497.0,94489.0,0.023]
[1736494484860,0.003,94497.0,94489.0,0.023]
[1736494485030,0.43082315,94510.0,94489.0,0.023]
[1736494485278,0.004,94498.0,94490.0,0.211662]
[1736494485484,0.004,94498.0,94489.0,0.023]
[1736494485662,0.003,94498.0,94489.0,0.023]
[1736494486023,0.001,94497.0,94489.0,0.023]
[1736494486621,0.001,94497.0,94490.0,0.211662]
[1736494486869,0.001,94497.0,94491.0,0.023]
[1736494487069,0.004,94497.0,94491.0,0.023]
[1736494487431,0.003,94497.0,94491.0,0.023]
[1736494487833,0.03208221,94496.0,94489.0,0.023]
[1736494488278,0.03208221,94496.0,94491.0,0.023]
[1736494488482,0.003,94497.0,94490.0,0.211662]
[1736494488876,0.004,94497.0,94490.0,0.211662]
[1736494489357,0.003,94497.0,94490.0,0.211662]
[1736494489792,0.24152207,94502.0,94490.0,0.211662]
[1736494490196,0.002,94496.0,94490.0,0.211662]
[1736494490398,0.002,94496.0,94488.0,0.211667]
[1736494490647,0.06786251,94500.0,94488.0,0.211667]
[1736494490857,0.003,94497.0,94488.0,0.211667]
[1736494491156,0.001,94497.0,94485.0,0.023]
[1736494491569,0.002,94496.0,94485.0,0.023]
[1736494491773,0.06986251,94500.0,94487.0,0.023]
[1736494491990,0.06986251,94500.0,94485.0,0.023]
[1736494492181,0.25150413,94499.0,94485.0,0.234673]
[1736494492392,0.25150413,94499.0,94485.0,0.023]
[1736494492622,0.001,94497.0,94485.0,0.023]
[1736494493001,0.06381887,94496.0,94485.0,0.023]
[1736494493399,0.211651,94495.0,94479.0,0.211685]
[1736494493597,0.211651,94495.0,94479.0,0.31598476]
[1736494493799,0.211651,94495.0,94482.0,0.023]
[1736494494562,0.06581887,94496.0,94484.0,0.023]
[1736494494764,0.05938365,94494.0,94484.0,0.023]
[1736494495188,0.003,94495.0,94494.0,0.023]
[1736494495393,0.003,94495.0,94494.0,0.10325814]
[1736494495601,0.003,94495.0,94494.0,0.20649976]
[1736494496027,0.003,94495.0,94494.0,0.35649976]
[1736494496234,0.002,94495.0,94494.0,0.41253976]
[1736494496435,0.00014597,94516.0,94515.0,0.234606]
[1736494496640,0.00014597,94516.0,94515.0,0.33890576]
[1736494498636,0.00014597,94516.0,94515.0,0.32990574]
[1736494503112,0.00014597,94516.0,94515.0,0.33190574]
[1736494504249,0.00014597,94516.0,94515.0,0.32290572]
[1736494505941,0.00014597,94516.0,94515.0,0.32190572]
[1736494506359,0.00014597,94516.0,94515.0,0.32490572]
[1736494508489,0.00014597,94516.0,94515.0,0.3159057]
[1736494509461,0.00014597,94516.0,94515.0,0.3149057]
[1736494509650,0.00014597,94516.0,94515.0,0.3119057]
[1736494510060,0.00014597,94516.0,94515.0,0.3169057]
[1736494511037,8.52e-05,94530.0,94515.0,0.3169057]
[1736494511038,0.00476083,94538.0,94527.0,0.211577]
[1736494511244,0.00483293,94538.0,94527.0,0.211577]
[1736494512299,0.00683293,94538.0,94527.0,0.211577]
[1736494512729,0.00683293,94538.0,94527.0,0.423156]
[1736494513088,0.01183293,94538.0,94527.0,0.423156]
[1736494513529,0.01183293,94538.0,94527.0,0.41415598]
[1736494514923,0.01183293,94538.0,94521.0,0.00788]
[1736494514924,0.01183293,94538.0,94531.0,0.211568]
[1736494515334,0.01183293,94538.0,94535.0,0.423121]
[1736494515955,0.00683293,94538.0,94535.0,0.423121]
[1736494516158,0.00983293,94538.0,94535.0,0.423121]
[1736494516861,0.00483293,94538.0,94535.0,0.423121]
[1736494517523,0.00983293,94538.0,94537.0,0.234557]
[1736494517730,0.01183293,94538.0,94537.0,0.41455676]
[1736494517941,0.01183293,94538.0,94537.0,0.56455676]
[1736494518154,0.01183293,94538.0,94537.0,0.61145676]
[1736494518416,0.00983293,94538.0,94537.0,0.61145676]
[1736494518646,0.01183293,94538.0,94537.0,0.61145676]
[1736494519065,0.00983293,94538.0,94537.0,0.61145676]
[1736494519276,0.00983293,94538.0,94537.0,0.7321324]
[1736494519499,0.00483293,94538.0,94537.0,0.7341324]
[1736494519990,0.00483293,94538.0,94537.0,0.7361324]
[1736494520232,0.00483293,94538.0,94537.0,0.7341324]
[1736494520436,0.00583293,94538.0,94537.0,0.7411324]
[1736494522093,0.00583293,94538.0,94537.0,0.45533676]
[1736494522305,0.00583293,94538.0,94537.0,0.33273676]
[1736494522728,0.00583293,94538.0,94537.0,0.34785676]
[1736494522925,0.00583293,94538.0,94537.0,0.33273676]
[1736494523131,0.00583293,94538.0,94537.0,0.220557]
[1736494524388,0.00583293,94538.0,94537.0,0.34785676]
[1736494524717,0.00583293,94538.0,94537.0,0.35573676]
[1736494524871,0.00583293,94538.0,94537.0,0.43673676]
[1736494526527,0.00583293,94538.0,94537.0,0.35573676]
[1736494528170,0.00583293,94538.0,94537.0,0.34785676]
[1736494528373,0.00583293,94538.0,94537.0,0.220557]
[1736494528556,0.00583293,94538.0,94537.0,0.21155698]
[1736494529198,0.00483293,94538.0,94537.0,0.20255698]
[1736494529500,0.00483293,94538.0,94537.0,0.20755698]
[1736494529701,0.00483293,94538.0,94537.0,0.20355698]
[1736494529900,0.00483293,94538.0,94537.0,0.20255698]
[1736494531485,0.01525756,94538.0,94537.0,0.20255698]
[1736494531898,0.01525756,94538.0,94537.0,0.2060163]
[1736494532101,0.01725756,94538.0,94537.0,0.2060163]
[1736494532316,0.01825756,94538.0,94537.0,0.2060163]
[1736494532546,0.00583293,94538.0,94537.0,0.2060163]
[1736494533183,0.00683293,94538.0,94537.0,0.2060163]
[1736494533598,0.00683293,94538.0,94537.0,0.19701628]
[1736494537052,0.00683293,94538.0,94537.0,0.22001628]
[1736494537266,0.00683293,94538.0,94537.0,0.32431604]
[1736494538056,0.00583293,94538.0,94537.0,0.32431604]
[1736494538669,0.00483293,94538.0,94537.0,0.31531602]
[1736494539046,0.00483293,94538.0,94537.0,0.31831602]
[1736494539365,0.00483293,94538.0,94537.0,0.31531602]
[1736494539717,0.00483293,94538.0,94537.0,0.31831602]
[1736494539976,0.00483293,94538.0,94537.0,0.31531602]
[1736494540170,0.00483293,94538.0,94537.0,0.31831602]
[1736494540807,0.00483293,94538.0,94537.0,0.31931602]
[1736494541912,0.00483293,94538.0,94537.0,0.31631602]
[1736494542119,0.00483293,94538.0,94537.0,0.31931602]
[1736494543697,0.00483293,94538.0,94537.0,0.310316]
[1736494544705,0.00483293,94538.0,94537.0,0.309316]
[1736494544904,0.00483293,94538.0,94537.0,0.306316]
[1736494545331,0.00483293,94538.0,94537.0,0.308316]
[1736494545580,0.00483293,94538.0,94537.0,0.306316]
[1736494545786,0.00483293,94538.0,94537.0,0.307316]
[1736494545954,0.01525756,94538.0,94537.0,0.311316]
[1736494546158,0.01525756,94538.0,94537.0,0.319156]
[1736494546355,0.00483293,94538.0,94537.0,0.311316]
[1736494546556,0.00483293,94538.0,94537.0,0.18401624]
[1736494546762,0.00483293,94538.0,94537.0,0.18001624]
[1736494547090,0.00483293,94538.0,94537.0,0.18301624]
[1736494547542,0.00483293,94538.0,94537.0,0.18401624]
[1736494547954,0.01921444,94538.0,94537.0,0.18301624]
[1736494548298,0.02021444,94538.0,94537.0,0.17901624]
[1736494548496,0.02021444,94538.0,94537.0,0.00797382]
[1736494548871,0.01921444,94538.0,94537.0,0.00397382]
[1736494549083,0.02021444,94538.0,94537.0,0.00397382]
[1736494549311,0.02121444,94538.0,94535.0,0.4175803]
[1736494549476,0.00683293,94538.0,94535.0,0.4175803]
[1736494550550,0.00583293,94538.0,94535.0,0.2060193]
[1736494550761,0.00683293,94538.0,94535.0,0.2060193]
[1736494551180,0.00683293,94538.0,94535.0,0.4175803]
[1736494551397,0.00683293,94538.0,94535.0,0.2060193]
[1736494551604,0.01062463,94537.0,94530.0,0.211571]
[1736494552013,0.01062463,94537.0,94530.0,0.423144]
[1736494552564,0.01062463,94537.0,94530.0,0.211571]
[1736494552770,0.0819,94536.0,94530.0,0.211571]
[1736494552975,0.04122558,94535.0,94527.0,0.211579]
[1736494553379,0.04122558,94535.0,94523.0,0.00784]
[1736494553583,0.04122558,94535.0,94521.0,0.211592]
[1736494554624,0.25278758,94535.0,94521.0,0.211592]
[1736494554836,0.06650454,94534.0,94521.0,0.211592]
[1736494555057,0.06650454,94534.0,94527.0,0.001]
[1736494555468,0.06650454,94534.0,94521.0,0.211592]
[1736494555692,0.001,94535.0,94531.0,0.21157]
[1736494555898,0.001,94535.0,94526.0,0.1259]
[1736494555899,0.002,94535.0,94533.0,0.15]
[1736494556105,0.002,94535.0,94534.0,0.31692138]
[1736494556334,0.002,94535.0,94534.0,0.48886376]
[1736494556569,0.002,94535.0,94534.0,0.49361354]
[1736494556780,0.001,94535.0,94534.0,0.49361354]
[1736494556981,0.00483293,94538.0,94535.0,0.384561]
[1736494557201,0.00483293,94538.0,94537.0,0.384557]
[1736494557399,0.00483293,94538.0,94537.0,0.48885676]
[1736494557631,0.00483293,94538.0,94537.0,0.4935933]
[1736494559233,0.00583293,94538.0,94537.0,0.5025933]
[1736494560535,0.00583293,94538.0,94537.0,0.52374768]
[1736494560713,0.00583293,94538.0,94537.0,0.52674768]
[1736494568676,0.00583293,94538.0,94537.0,0.53458768]
[1736494569521,0.00583293,94538.0,94537.0,0.5134333]
[1736494570382,0.00583293,94538.0,94537.0,0.5104333]
[1736494570619,0.00583293,94538.0,94537.0,0.5134333]
[1736494570820,0.00483293,94538.0,94537.0,0.5044333]
[1736494571022,0.00483293,94538.0,94537.0,0.5014333]
[1736494571524,0.00483293,94538.0,94537.0,0.5044333]
[1736494571933,0.00483293,94538.0,94537.0,0.5014333]
[1736494572144,0.00583293,94538.0,94537.0,0.5104333]
[1736494572305,0.00583293,94538.0,94537.0,0.5134333]
[1736494572505,0.00483293,94538.0,94537.0,0.5044333]
[1736494572715,0.00583293,94538.0,94537.0,0.5134333]
[1736494573081,0.00483293,94538.0,94537.0,0.5044333]
[1736494573497,0.00583293,94538.0,94537.0,0.5134333]
[1736494573675,0.00583293,94538.0,94537.0,0.5025933]
[1736494573846,0.00583293,94538.0,94537.0,0.5134333]
[1736494574497,0.00583293,94538.0,94537.0,0.7942407]
[1736494574841,0.00583293,94538.0,94537.0,0.7972407]
[1736494575220,0.00583293,94538.0,94537.0,0.5014333]
[1736494575221,0.00483293,94538.0,94537.0,0.5014333]
[1736494575404,0.00583293,94538.0,94537.0,0.5104333]
[1736494575610,0.00583293,94538.0,94537.0,0.7962407]
[1736494575817,0.00483293,94538.0,94537.0,0.7872407]
[1736494575987,0.00583293,94538.0,94537.0,0.7922407]
[1736494576359,0.00583293,94538.0,94537.0,0.7872407]
[1736494576684,0.00683293,94538.0,94537.0,0.7962407]
[1736494576886,0.00483293,94538.0,94537.0,0.7852407]
[1736494577131,0.00483293,94538.0,94537.0,0.5014333]
[1736494577440,0.00483293,94538.0,94537.0,0.4955933]
[1736494577643,0.00483293,94538.0,94537.0,0.5034333]
[1736494577943,0.00483293,94538.0,94537.0,0.61214508]
[1736494578175,0.00483293,94538.0,94537.0,0.22713354]
[1736494578349,0.00483293,94538.0,94537.0,0.21929354]
[1736494578728,0.00583293,94538.0,94537.0,0.22229354]
[1736494579344,0.00483293,94538.0,94537.0,0.21629354]
[1736494579564,0.02355756,94538.0,94537.0,0.21629354]
[1736494580290,0.02355756,94538.0,94537.0,0.22229354]
[1736494580661,0.02355756,94538.0,94537.0,0.22129354]
[1736494580852,0.02355756,94538.0,94537.0,0.00973654]
[1736494581055,0.02355756,94538.0,94537.0,0.01173654]
[1736494581440,0.02355756,94538.0,94537.0,0.0063015]
[1736494581904,0.02355756,94538.0,94537.0,0.006]
[1736494581905,0.02455756,94538.0,94537.0,0.006]
[1736494582103,0.02355756,94538.0,94537.0,0.00680083]
[1736494582308,0.00483293,94538.0,94537.0,0.00780083]
[1736494583387,0.00483293,94538.0,94537.0,0.12610057]
[1736494583601,0.00483293,94538.0,94537.0,0.13248148]
[1736494584901,0.00483293,94538.0,94537.0,0.14032148]
[1736494585113,0.00483293,94538.0,94537.0,0.14632148]
[1736494585729,0.00483293,94538.0,94537.0,0.14032148]
[1736494586171,0.00483293,94538.0,94537.0,0.14532148]
[1736494586370,0.00483293,94538.0,94537.0,0.14032148]
[1736494587247,0.00483293,94538.0,94537.0,0.14132148]
[1736494587393,0.00483293,94538.0,94537.0,0.13348148]
[1736494587614,0.00483293,94538.0,94537.0,0.14032148]
[1736494588004,0.00483293,94538.0,94537.0,0.14432148]